{"text_format":"1","workbook":"xlsx","n_sheets":3,"sheets":["Лист1","Лист2","Лист3"],"not_rendered":{"charts":0,"images":0,"macros":1,"external_links":0,"defined_names":2,"comments":0,"pivot_tables":0},"unopened":[],"bounds":{"document_bytes":16777216,"sheet_cells":100000,"rows_first":2000,"rows_last":500,"rows_between":2000,"halvings":0,"cell_chars":16384,"cell_head_chars":4096},"cells_cut":0,"cells_raw":0,"read":"whole","date_system":"1900"}

{"sheet":"Лист1","index":0,"n_rows":3,"n_cols":6,"rows_kept":3,"cut":false,"hidden":false,"merged":[]}
["логин","Уже прослушано штук"]
["talyadova",3,null,null,null,"Переменные данные"]
["asbarcevich",5]

{"sheet":"Лист2","index":1,"n_rows":500,"n_cols":11,"rows_kept":500,"cut":false,"hidden":false,"merged":[[0,6,0,8],[3,6,3,7],[4,6,4,7],[5,6,5,7]]}
["Логин","Баллов",null,"Вклад логина","Нужно прослушать за месяц",null,"Количество смен РГ",null,null,null,{"$f":"LOOKUP(TRANSPOSE(RndUnicArr(SUM($E:$E)))-1,MMULT((ROW($E$1:$E$54)>=TRANSPOSE(ROW($E$1:$E$54)))*N(TRANSPOSE($E$1:$E$54)),ROW($E$1:$E$54)^0),$A$2:$A$54)","v":"rrkashkarova"}]
["talyadova",618.49,null,{"$f":"B2/SUM(B:B)","v":6.0844757281075829E-2},{"$f":"ROUND($I$5*D2,0)","v":20},null,"РГ1","РГ2","РГ3",null,"eadanilenko"]
["asbarcevich",469.08,null,{"$f":"B3/SUM(B:B)","v":4.6146354420293051E-2},{"$f":"ROUND($I$5*D3,0)","v":15},null,20,15,20,null,"nndanilova"]
["yavfedorova",467.77,null,4.6017481468364624E-2,{"$f":"ROUND($I$5*D4,0)","v":15},null,"Норма в день",null,6,null,"iabuxareva"]
["yuvmakhnacheva",467.08,null,4.5949601821929045E-2,{"$f":"ROUND($I$5*D5,0)","v":15},null,"Норма за месяц",null,{"$f":"(G3+H3+I3)*I4","v":330},null,"rrkashkarova"]
["rrkashkarova",465.77,null,4.5820728870000625E-2,{"$f":"ROUND($I$5*D6,0)","v":15},null,null,null,null,null,"vkmamina"]
["aatkacheva",456.82,null,4.4940260992321714E-2,{"$f":"ROUND($I$5*D7,0)","v":15},null,null,null,null,null,"mvorlova72502"]
["nvmalova",368.1,null,3.6212315728894585E-2,{"$f":"ROUND($I$5*D8,0)","v":12},null,null," переменные данные",null,null,"iabuxareva"]
["mntochilenko",314.16000000000003,null,3.090589815101745E-2,{"$f":"ROUND($I$5*D9,0)","v":10},null,null,null,null,null,"nndanilova"]
["iamatveeva48589",301.7,null,2.9680129463209713E-2,{"$f":"ROUND($I$5*D10,0)","v":10},null,null,null,null,null,"nvmalova"]
["agmackevich",290.95,null,2.8622584247003202E-2,{"$f":"ROUND($I$5*D11,0)","v":9},null,null,null,null,null,"asbarcevich"]
["edcygankova",283.58,null,2.7897550922031854E-2,{"$f":"ROUND($I$5*D12,0)","v":9},null,null,null,null,null,"yuvkrivova"]
["iabuxareva",278.73,null,2.7420425870999153E-2,{"$f":"ROUND($I$5*D13,0)","v":9},null,null,null,null,null,"detaganova"]
["eadanilenko",276.08999999999997,null,2.7160712441158665E-2,{"$f":"ROUND($I$5*D14,0)","v":9},null,null,null,null,null,"asuvarova10571"]
["eafaber",272.16000000000003,null,2.6774093585373408E-2,{"$f":"ROUND($I$5*D15,0)","v":9},null,null,null,null,null,"mvorlova72502"]
["kilomova",263.27999999999997,null,2.5900512048637234E-2,{"$f":"ROUND($I$5*D16,0)","v":9},null,null,null,null,null,"asbarcevich"]
["nvtarasova80947",257.24,null,2.530631920157795E-2,{"$f":"ROUND($I$5*D17,0)","v":8},null,null,null,null,null,"yuasubcelnyj"]
["ovberseneva",253.2,null,2.4908878952882664E-2,{"$f":"ROUND($I$5*D18,0)","v":8},null,null,null,null,null,"masholokhova"]
["apladchenko",248.16,null,2.4413062405005379E-2,{"$f":"ROUND($I$5*D19,0)","v":8},null,null,null,null,null,"yuvmakhnacheva"]
["yuvkrivova",237.43,null,2.3357484714782509E-2,{"$f":"ROUND($I$5*D20,0)","v":8},null,null,null,null,null,"dakurnosova"]
["emdyakonova",220.64,null,2.170574665151671E-2,{"$f":"ROUND($I$5*D21,0)","v":7},null,null,null,null,null,"asbarcevich"]
["nndanilova",213.92,null,2.1044657921013663E-2,{"$f":"ROUND($I$5*D22,0)","v":7},null,null,null,null,null,"yuvmakhnacheva"]
["mvorlova72502",211.2,null,2.0777074387238619E-2,{"$f":"ROUND($I$5*D23,0)","v":7},null,null,null,null,null,"talyadova"]
["mguzun",210.18,null,2.0676730562072979E-2,{"$f":"ROUND($I$5*D24,0)","v":7},null,null,null,null,null,"rrkashkarova"]
["esepishkina",206.64,null,2.0328478462968695E-2,{"$f":"ROUND($I$5*D25,0)","v":7},null,null,null,null,null,"asuvarova10571"]
["vkmamina",206.34,null,2.0298965573214096E-2,{"$f":"ROUND($I$5*D26,0)","v":7},null,null,null,null,null,"rrkashkarova"]
["dakurnosova",204.14,null,2.0082537715013692E-2,{"$f":"ROUND($I$5*D27,0)","v":7},null,null,null,null,null,"asbarcevich"]
["yuasubcelnyj",193.1,null,1.89964633720444E-2,{"$f":"ROUND($I$5*D28,0)","v":6},null,null,null,null,null,"dakurnosova"]
["rrmustafin14705",180.84,null,1.779036994407307E-2,{"$f":"ROUND($I$5*D29,0)","v":6},null,null,null,null,null,"iabuxareva"]
["nabatienko",152.4,null,1.4992547995336959E-2,{"$f":"ROUND($I$5*D30,0)","v":5},null,null,null,null,null,"nndanilova"]
["lxlysogor",135.54,null,1.3333923591128422E-2,{"$f":"ROUND($I$5*D31,0)","v":4},null,null,null,null,null,"iamatveeva48589"]
["epbogdanova",134.84,null,1.3265060181701021E-2,{"$f":"ROUND($I$5*D32,0)","v":4},null,null,null,null,null,"apladchenko"]
["lavaxitova54586",127.1,null,1.2503627626032332E-2,{"$f":"ROUND($I$5*D33,0)","v":4},null,null,null,null,null,"iamatveeva48589"]
["mvmanylova",119.76,null,1.1781545590036446E-2,{"$f":"ROUND($I$5*D34,0)","v":4},null,null,null,null,null,"rrmustafin14705"]
["glkim",111.1,null,1.0929606839120315E-2,{"$f":"ROUND($I$5*D35,0)","v":4},null,null,null,null,null,"esepishkina"]
["asuvarova10571",103.9,null,1.022129748500991E-2,{"$f":"ROUND($I$5*D36,0)","v":3},null,null,null,null,null,"vkmamina"]
["tvsitnikova",101.56,null,9.9910969449240258E-3,{"$f":"ROUND($I$5*D37,0)","v":3},null,null,null,null,null,"tvsitnikova"]
["meburak",96.88,null,9.5306958647522599E-3,{"$f":"ROUND($I$5*D38,0)","v":3},null,null,null,null,null,"asuvarova10571"]
["khebujnova",95.08,null,9.3536185262246586E-3,{"$f":"ROUND($I$5*D39,0)","v":3},null,null,null,null,null,"nvtarasova80947"]
["admosoravchuk",80.5,null,7.9192920841510833E-3,{"$f":"ROUND($I$5*D40,0)","v":3},null,null,null,null,null,"ovberseneva"]
["olsorokina",73.819999999999993,null,7.2621384056153161E-3,{"$f":"ROUND($I$5*D41,0)","v":2},null,null,null,null,null,"eadanilenko"]
["nsproskurina",63.6,null,6.2567326279752665E-3,{"$f":"ROUND($I$5*D42,0)","v":2},null,null,null,null,null,"rrkashkarova"]
["detaganova",60,null,5.9025779509200623E-3,{"$f":"ROUND($I$5*D43,0)","v":2},null,null,null,null,null,"lxlysogor"]
["masholokhova",49.2,null,4.8401139197544515E-3,{"$f":"ROUND($I$5*D44,0)","v":2},null,null,null,null,null,"yuvmakhnacheva"]
["aeshataeva",48,null,4.7220623607360504E-3,{"$f":"ROUND($I$5*D45,0)","v":2},null,null,null,null,null,"agmackevich"]
["izmerzabekova",43.18,null,4.2478885986788053E-3,{"$f":"ROUND($I$5*D46,0)","v":1},null,null,null,null,null,"kilomova"]
["nsovsyannikova1228",39,null,3.8366756680980408E-3,{"$f":"ROUND($I$5*D47,0)","v":1},null,null,null,null,null,"talyadova"]
["eivysotina",24.1,null,2.3708688102862252E-3,{"$f":"ROUND($I$5*D48,0)","v":1},null,null,null,null,null,"rrkashkarova"]
["lipotapova",22.2,null,2.1839538418404231E-3,{"$f":"ROUND($I$5*D49,0)","v":1},null,null,null,null,null,"aeshataeva"]
["yuemogutnova",18.3,null,1.8002862750306193E-3,{"$f":"ROUND($I$5*D50,0)","v":1},null,null,null,null,null,"mguzun"]
["aaturovskaya",17.5,null,1.7215852356850182E-3,{"$f":"ROUND($I$5*D51,0)","v":1},null,null,null,null,null,"ovberseneva"]
["vekuzmicheva",10.7,null,1.052626401247411E-3,{"$f":"ROUND($I$5*D52,0)","v":0},null,null,null,null,null,"aatkacheva"]
["mvmaslova",0,null,0,{"$f":"ROUND($I$5*D53,0)","v":0},null,null,null,null,null,"ovberseneva"]
["vvkresanov",0,null,0,{"$f":"ROUND($I$5*D54,0)","v":0},null,null,null,null,null,"lavaxitova54586"]
[null,null,null,null,null,null,null,null,null,null,"vkmamina"]
[null,null,null,null,null,null,null,null,null,null,"iabuxareva"]
[null,null,null,null,null,null,null,null,null,null,"yavfedorova"]
[null,null,null,null,null,null,null,null,null,null,"ovberseneva"]
[null,null,null,null,null,null,null,null,null,null,"dakurnosova"]
[null,null,null,null,null,null,null,null,null,null,"asbarcevich"]
[null,null,null,null,null,null,null,null,null,null,"admosoravchuk"]
[null,null,null,null,null,null,null,null,null,null,"yuasubcelnyj"]
[null,null,null,null,null,null,null,null,null,null,"tvsitnikova"]
[null,null,null,null,null,null,null,null,null,null,"iamatveeva48589"]
[null,null,null,null,null,null,null,null,null,null,"nvtarasova80947"]
[null,null,null,null,null,null,null,null,null,null,"khebujnova"]
[null,null,null,null,null,null,null,null,null,null,"edcygankova"]
[null,null,null,null,null,null,null,null,null,null,"iabuxareva"]
[null,null,null,null,null,null,null,null,null,null,"nvmalova"]
[null,null,null,null,null,null,null,null,null,null,"nvtarasova80947"]
[null,null,null,null,null,null,null,null,null,null,"glkim"]
[null,null,null,null,null,null,null,null,null,null,"epbogdanova"]
[null,null,null,null,null,null,null,null,null,null,"yuvkrivova"]
[null,null,null,null,null,null,null,null,null,null,"vkmamina"]
[null,null,null,null,null,null,null,null,null,null,"asbarcevich"]
[null,null,null,null,null,null,null,null,null,null,"eafaber"]
[null,null,null,null,null,null,null,null,null,null,"asbarcevich"]
[null,null,null,null,null,null,null,null,null,null,"edcygankova"]
[null,null,null,null,null,null,null,null,null,null,"nvtarasova80947"]
[null,null,null,null,null,null,null,null,null,null,"emdyakonova"]
[null,null,null,null,null,null,null,null,null,null,"yavfedorova"]
[null,null,null,null,null,null,null,null,null,null,"eafaber"]
[null,null,null,null,null,null,null,null,null,null,"rrkashkarova"]
[null,null,null,null,null,null,null,null,null,null,"yuasubcelnyj"]
[null,null,null,null,null,null,null,null,null,null,"asbarcevich"]
[null,null,null,null,null,null,null,null,null,null,"iabuxareva"]
[null,null,null,null,null,null,null,null,null,null,"dakurnosova"]
[null,null,null,null,null,null,null,null,null,null,"ovberseneva"]
[null,null,null,null,null,null,null,null,null,null,"yuvmakhnacheva"]
[null,null,null,null,null,null,null,null,null,null,"nabatienko"]
[null,null,null,null,null,null,null,null,null,null,"mguzun"]
[null,null,null,null,null,null,null,null,null,null,"yavfedorova"]
[null,null,null,null,null,null,null,null,null,null,"mvorlova72502"]
[null,null,null,null,null,null,null,null,null,null,"mguzun"]
[null,null,null,null,null,null,null,null,null,null,"eadanilenko"]
[null,null,null,null,null,null,null,null,null,null,"aatkacheva"]
[null,null,null,null,null,null,null,null,null,null,"epbogdanova"]
[null,null,null,null,null,null,null,null,null,null,"nvtarasova80947"]
[null,null,null,null,null,null,null,null,null,null,"nndanilova"]
[null,null,null,null,null,null,null,null,null,null,"mntochilenko"]
[null,null,null,null,null,null,null,null,null,null,"mntochilenko"]
[null,null,null,null,null,null,null,null,null,null,"epbogdanova"]
[null,null,null,null,null,null,null,null,null,null,"talyadova"]
[null,null,null,null,null,null,null,null,null,null,"nabatienko"]
[null,null,null,null,null,null,null,null,null,null,"aatkacheva"]
[null,null,null,null,null,null,null,null,null,null,"mvmanylova"]
[null,null,null,null,null,null,null,null,null,null,"nsproskurina"]
[null,null,null,null,null,null,null,null,null,null,"emdyakonova"]
[null,null,null,null,null,null,null,null,null,null,"vkmamina"]
[null,null,null,null,null,null,null,null,null,null,"agmackevich"]
[null,null,null,null,null,null,null,null,null,null,"emdyakonova"]
[null,null,null,null,null,null,null,null,null,null,"talyadova"]
[null,null,null,null,null,null,null,null,null,null,"talyadova"]
[null,null,null,null,null,null,null,null,null,null,"agmackevich"]
[null,null,null,null,null,null,null,null,null,null,"khebujnova"]
[null,null,null,null,null,null,null,null,null,null,"esepishkina"]
[null,null,null,null,null,null,null,null,null,null,"epbogdanova"]
[null,null,null,null,null,null,null,null,null,null,"nvmalova"]
[null,null,null,null,null,null,null,null,null,null,"yuvmakhnacheva"]
[null,null,null,null,null,null,null,null,null,null,"nvmalova"]
[null,null,null,null,null,null,null,null,null,null,"yavfedorova"]
[null,null,null,null,null,null,null,null,null,null,"iamatveeva48589"]
[null,null,null,null,null,null,null,null,null,null,"aatkacheva"]
[null,null,null,null,null,null,null,null,null,null,"olsorokina"]
[null,null,null,null,null,null,null,null,null,null,"yuvkrivova"]
[null,null,null,null,null,null,null,null,null,null,"rrkashkarova"]
[null,null,null,null,null,null,null,null,null,null,"eafaber"]
[null,null,null,null,null,null,null,null,null,null,"glkim"]
[null,null,null,null,null,null,null,null,null,null,"glkim"]
[null,null,null,null,null,null,null,null,null,null,"agmackevich"]
[null,null,null,null,null,null,null,null,null,null,"talyadova"]
[null,null,null,null,null,null,null,null,null,null,"edcygankova"]
[null,null,null,null,null,null,null,null,null,null,"nabatienko"]
[null,null,null,null,null,null,null,null,null,null,"rrkashkarova"]
[null,null,null,null,null,null,null,null,null,null,"rrkashkarova"]
[null,null,null,null,null,null,null,null,null,null,"nvmalova"]
[null,null,null,null,null,null,null,null,null,null,"talyadova"]
[null,null,null,null,null,null,null,null,null,null,"lipotapova"]
[null,null,null,null,null,null,null,null,null,null,"aatkacheva"]
[null,null,null,null,null,null,null,null,null,null,"eafaber"]
[null,null,null,null,null,null,null,null,null,null,"apladchenko"]
[null,null,null,null,null,null,null,null,null,null,"rrkashkarova"]
[null,null,null,null,null,null,null,null,null,null,"tvsitnikova"]
[null,null,null,null,null,null,null,null,null,null,"talyadova"]
[null,null,null,null,null,null,null,null,null,null,"yuasubcelnyj"]
[null,null,null,null,null,null,null,null,null,null,"yuasubcelnyj"]
[null,null,null,null,null,null,null,null,null,null,"nvmalova"]
[null,null,null,null,null,null,null,null,null,null,"eafaber"]
[null,null,null,null,null,null,null,null,null,null,"talyadova"]
[null,null,null,null,null,null,null,null,null,null,"yavfedorova"]
[null,null,null,null,null,null,null,null,null,null,"yuvmakhnacheva"]
[null,null,null,null,null,null,null,null,null,null,"agmackevich"]
[null,null,null,null,null,null,null,null,null,null,"aatkacheva"]
[null,null,null,null,null,null,null,null,null,null,"nsproskurina"]
[null,null,null,null,null,null,null,null,null,null,"yavfedorova"]
[null,null,null,null,null,null,null,null,null,null,"mntochilenko"]
[null,null,null,null,null,null,null,null,null,null,"yuvkrivova"]
[null,null,null,null,null,null,null,null,null,null,"eafaber"]
[null,null,null,null,null,null,null,null,null,null,"meburak"]
[null,null,null,null,null,null,null,null,null,null,"edcygankova"]
[null,null,null,null,null,null,null,null,null,null,"esepishkina"]
[null,null,null,null,null,null,null,null,null,null,"yuvmakhnacheva"]
[null,null,null,null,null,null,null,null,null,null,"mntochilenko"]
[null,null,null,null,null,null,null,null,null,null,"izmerzabekova"]
[null,null,null,null,null,null,null,null,null,null,"apladchenko"]
[null,null,null,null,null,null,null,null,null,null,"yuvmakhnacheva"]
[null,null,null,null,null,null,null,null,null,null,"yuvkrivova"]
[null,null,null,null,null,null,null,null,null,null,"admosoravchuk"]
[null,null,null,null,null,null,null,null,null,null,"dakurnosova"]
[null,null,null,null,null,null,null,null,null,null,"iabuxareva"]
[null,null,null,null,null,null,null,null,null,null,"eadanilenko"]
[null,null,null,null,null,null,null,null,null,null,"yuvkrivova"]
[null,null,null,null,null,null,null,null,null,null,"edcygankova"]
[null,null,null,null,null,null,null,null,null,null,"nsovsyannikova1228"]
[null,null,null,null,null,null,null,null,null,null,"lxlysogor"]
[null,null,null,null,null,null,null,null,null,null,"talyadova"]
[null,null,null,null,null,null,null,null,null,null,"eadanilenko"]
[null,null,null,null,null,null,null,null,null,null,"lavaxitova54586"]
[null,null,null,null,null,null,null,null,null,null,"edcygankova"]
[null,null,null,null,null,null,null,null,null,null,"detaganova"]
[null,null,null,null,null,null,null,null,null,null,"dakurnosova"]
[null,null,null,null,null,null,null,null,null,null,"agmackevich"]
[null,null,null,null,null,null,null,null,null,null,"aatkacheva"]
[null,null,null,null,null,null,null,null,null,null,"mvorlova72502"]
[null,null,null,null,null,null,null,null,null,null,"talyadova"]
[null,null,null,null,null,null,null,null,null,null,"lavaxitova54586"]
[null,null,null,null,null,null,null,null,null,null,"mvmanylova"]
[null,null,null,null,null,null,null,null,null,null,"rrmustafin14705"]
[null,null,null,null,null,null,null,null,null,null,"lxlysogor"]
[null,null,null,null,null,null,null,null,null,null,"aaturovskaya"]
[null,null,null,null,null,null,null,null,null,null,"talyadova"]
[null,null,null,null,null,null,null,null,null,null,"esepishkina"]
[null,null,null,null,null,null,null,null,null,null,"mguzun"]
[null,null,null,null,null,null,null,null,null,null,"eadanilenko"]
[null,null,null,null,null,null,null,null,null,null,"apladchenko"]
[null,null,null,null,null,null,null,null,null,null,"yavfedorova"]
[null,null,null,null,null,null,null,null,null,null,"asbarcevich"]
[null,null,null,null,null,null,null,null,null,null,"yavfedorova"]
[null,null,null,null,null,null,null,null,null,null,"nvtarasova80947"]
[null,null,null,null,null,null,null,null,null,null,"nabatienko"]
[null,null,null,null,null,null,null,null,null,null,"khebujnova"]
[null,null,null,null,null,null,null,null,null,null,"mntochilenko"]
[null,null,null,null,null,null,null,null,null,null,"ovberseneva"]
[null,null,null,null,null,null,null,null,null,null,"iamatveeva48589"]
[null,null,null,null,null,null,null,null,null,null,"mvorlova72502"]
[null,null,null,null,null,null,null,null,null,null,"nvmalova"]
[null,null,null,null,null,null,null,null,null,null,"mntochilenko"]
[null,null,null,null,null,null,null,null,null,null,"eadanilenko"]
[null,null,null,null,null,null,null,null,null,null,"agmackevich"]
[null,null,null,null,null,null,null,null,null,null,"iabuxareva"]
[null,null,null,null,null,null,null,null,null,null,"yavfedorova"]
[null,null,null,null,null,null,null,null,null,null,"nvmalova"]
[null,null,null,null,null,null,null,null,null,null,"iamatveeva48589"]
[null,null,null,null,null,null,null,null,null,null,"meburak"]
[null,null,null,null,null,null,null,null,null,null,"kilomova"]
[null,null,null,null,null,null,null,null,null,null,"eadanilenko"]
[null,null,null,null,null,null,null,null,null,null,"esepishkina"]
[null,null,null,null,null,null,null,null,null,null,"yuvmakhnacheva"]
[null,null,null,null,null,null,null,null,null,null,"asbarcevich"]
[null,null,null,null,null,null,null,null,null,null,"nvtarasova80947"]
[null,null,null,null,null,null,null,null,null,null,"iabuxareva"]
[null,null,null,null,null,null,null,null,null,null,"edcygankova"]
[null,null,null,null,null,null,null,null,null,null,"emdyakonova"]
[null,null,null,null,null,null,null,null,null,null,"mntochilenko"]
[null,null,null,null,null,null,null,null,null,null,"yavfedorova"]
[null,null,null,null,null,null,null,null,null,null,"nndanilova"]
[null,null,null,null,null,null,null,null,null,null,"agmackevich"]
[null,null,null,null,null,null,null,null,null,null,"esepishkina"]
[null,null,null,null,null,null,null,null,null,null,"agmackevich"]
[null,null,null,null,null,null,null,null,null,null,"asbarcevich"]
[null,null,null,null,null,null,null,null,null,null,"iamatveeva48589"]
[null,null,null,null,null,null,null,null,null,null,"talyadova"]
[null,null,null,null,null,null,null,null,null,null,"kilomova"]
[null,null,null,null,null,null,null,null,null,null,"nabatienko"]
[null,null,null,null,null,null,null,null,null,null,"nvtarasova80947"]
[null,null,null,null,null,null,null,null,null,null,"yuvmakhnacheva"]
[null,null,null,null,null,null,null,null,null,null,"rrkashkarova"]
[null,null,null,null,null,null,null,null,null,null,"mguzun"]
[null,null,null,null,null,null,null,null,null,null,"talyadova"]
[null,null,null,null,null,null,null,null,null,null,"vkmamina"]
[null,null,null,null,null,null,null,null,null,null,"aatkacheva"]
[null,null,null,null,null,null,null,null,null,null,"eivysotina"]
[null,null,null,null,null,null,null,null,null,null,"yuvkrivova"]
[null,null,null,null,null,null,null,null,null,null,"nndanilova"]
[null,null,null,null,null,null,null,null,null,null,"nvmalova"]
[null,null,null,null,null,null,null,null,null,null,"aatkacheva"]
[null,null,null,null,null,null,null,null,null,null,"asbarcevich"]
[null,null,null,null,null,null,null,null,null,null,"yuvmakhnacheva"]
[null,null,null,null,null,null,null,null,null,null,"talyadova"]
[null,null,null,null,null,null,null,null,null,null,"yuvmakhnacheva"]
[null,null,null,null,null,null,null,null,null,null,"talyadova"]
[null,null,null,null,null,null,null,null,null,null,"rrmustafin14705"]
[null,null,null,null,null,null,null,null,null,null,"iamatveeva48589"]
[null,null,null,null,null,null,null,null,null,null,"lavaxitova54586"]
[null,null,null,null,null,null,null,null,null,null,"edcygankova"]
[null,null,null,null,null,null,null,null,null,null,"esepishkina"]
[null,null,null,null,null,null,null,null,null,null,"aatkacheva"]
[null,null,null,null,null,null,null,null,null,null,"eafaber"]
[null,null,null,null,null,null,null,null,null,null,"yuasubcelnyj"]
[null,null,null,null,null,null,null,null,null,null,"yavfedorova"]
[null,null,null,null,null,null,null,null,null,null,"asbarcevich"]
[null,null,null,null,null,null,null,null,null,null,"rrmustafin14705"]
[null,null,null,null,null,null,null,null,null,null,"mvmanylova"]
[null,null,null,null,null,null,null,null,null,null,"yuvkrivova"]
[null,null,null,null,null,null,null,null,null,null,"mntochilenko"]
[null,null,null,null,null,null,null,null,null,null,"mntochilenko"]
[null,null,null,null,null,null,null,null,null,null,"kilomova"]
[null,null,null,null,null,null,null,null,null,null,"apladchenko"]
[null,null,null,null,null,null,null,null,null,null,"nndanilova"]
[null,null,null,null,null,null,null,null,null,null,"yavfedorova"]
[null,null,null,null,null,null,null,null,null,null,"emdyakonova"]
[null,null,null,null,null,null,null,null,null,null,"aatkacheva"]
[null,null,null,null,null,null,null,null,null,null,"iamatveeva48589"]
[null,null,null,null,null,null,null,null,null,null,"yuvmakhnacheva"]
[null,null,null,null,null,null,null,null,null,null,"ovberseneva"]
[null,null,null,null,null,null,null,null,null,null,"masholokhova"]
[null,null,null,null,null,null,null,null,null,null,"aatkacheva"]
[null,null,null,null,null,null,null,null,null,null,"mvorlova72502"]
[null,null,null,null,null,null,null,null,null,null,"apladchenko"]
[null,null,null,null,null,null,null,null,null,null,"rrkashkarova"]
[null,null,null,null,null,null,null,null,null,null,"yuvmakhnacheva"]
[null,null,null,null,null,null,null,null,null,null,"mguzun"]
[null,null,null,null,null,null,null,null,null,null,"rrmustafin14705"]
[null,null,null,null,null,null,null,null,null,null,"kilomova"]
[null,null,null,null,null,null,null,null,null,null,"nvmalova"]
[null,null,null,null,null,null,null,null,null,null,"meburak"]
[null,null,null,null,null,null,null,null,null,null,"rrkashkarova"]
[null,null,null,null,null,null,null,null,null,null,"rrmustafin14705"]
[null,null,null,null,null,null,null,null,null,null,"emdyakonova"]
[null,null,null,null,null,null,null,null,null,null,"vkmamina"]
[null,null,null,null,null,null,null,null,null,null,"aatkacheva"]
[null,null,null,null,null,null,null,null,null,null,"mvorlova72502"]
[null,null,null,null,null,null,null,null,null,null,"eafaber"]
[null,null,null,null,null,null,null,null,null,null,"eafaber"]
[null,null,null,null,null,null,null,null,null,null,"apladchenko"]
[null,null,null,null,null,null,null,null,null,null,"eadanilenko"]
[null,null,null,null,null,null,null,null,null,null,"yuemogutnova"]
[null,null,null,null,null,null,null,null,null,null,"emdyakonova"]
[null,null,null,null,null,null,null,null,null,null,"admosoravchuk"]
[null,null,null,null,null,null,null,null,null,null,"iamatveeva48589"]
[null,null,null,null,null,null,null,null,null,null,"lxlysogor"]
[null,null,null,null,null,null,null,null,null,null,"talyadova"]
[null,null,null,null,null,null,null,null,null,null,"olsorokina"]
[null,null,null,null,null,null,null,null,null,null,"yuvmakhnacheva"]
[null,null,null,null,null,null,null,null,null,null,"apladchenko"]
[null,null,null,null,null,null,null,null,null,null,"dakurnosova"]
[null,null,null,null,null,null,null,null,null,null,"kilomova"]
[null,null,null,null,null,null,null,null,null,null,"asbarcevich"]
[null,null,null,null,null,null,null,null,null,null,"asbarcevich"]
[null,null,null,null,null,null,null,null,null,null,"yavfedorova"]
[null,null,null,null,null,null,null,null,null,null,"yavfedorova"]
[null,null,null,null,null,null,null,null,null,null,"mguzun"]
[null,null,null,null,null,null,null,null,null,null,"glkim"]
[null,null,null,null,null,null,null,null,null,null,"nvmalova"]
[null,null,null,null,null,null,null,null,null,null,"kilomova"]
[null,null,null,null,null,null,null,null,null,null,"mvmanylova"]
[null,null,null,null,null,null,null,null,null,null,"talyadova"]
[null,null,null,null,null,null,null,null,null,null,"talyadova"]
[null,null,null,null,null,null,null,null,null,null,"aatkacheva"]
[null,null,null,null,null,null,null,null,null,null,"edcygankova"]
[null,null,null,null,null,null,null,null,null,null,"nvmalova"]
[null,null,null,null,null,null,null,null,null,null,"ovberseneva"]
[null,null,null,null,null,null,null,null,null,null,"aeshataeva"]
[null,null,null,null,null,null,null,null,null,null,"yavfedorova"]
[null,null,null,null,null,null,null,null,null,null,"mntochilenko"]
[null,null,null,null,null,null,null,null,null,null,"aatkacheva"]
[null,null,null,null,null,null,null,null,null,null,"rrkashkarova"]
[null,null,null,null,null,null,null,null,null,null,"kilomova"]
[null,null,null,null,null,null,null,null,null,null,"kilomova"]
[null,null,null,null,null,null,null,null,null,null,"talyadova"]
[null,null,null,null,null,null,null,null,null,null,{"$error":"#N/A"}]
[null,null,null,null,null,null,null,null,null,null,{"$error":"#N/A"}]
[null,null,null,null,null,null,null,null,null,null,{"$error":"#N/A"}]
[null,null,null,null,null,null,null,null,null,null,{"$error":"#N/A"}]
[null,null,null,null,null,null,null,null,null,null,{"$error":"#N/A"}]
[null,null,null,null,null,null,null,null,null,null,{"$error":"#N/A"}]
[null,null,null,null,null,null,null,null,null,null,{"$error":"#N/A"}]
[null,null,null,null,null,null,null,null,null,null,{"$error":"#N/A"}]
[null,null,null,null,null,null,null,null,null,null,{"$error":"#N/A"}]
[null,null,null,null,null,null,null,null,null,null,{"$error":"#N/A"}]
[null,null,null,null,null,null,null,null,null,null,{"$error":"#N/A"}]
[null,null,null,null,null,null,null,null,null,null,{"$error":"#N/A"}]
[null,null,null,null,null,null,null,null,null,null,{"$error":"#N/A"}]
[null,null,null,null,null,null,null,null,null,null,{"$error":"#N/A"}]
[null,null,null,null,null,null,null,null,null,null,{"$error":"#N/A"}]
[null,null,null,null,null,null,null,null,null,null,{"$error":"#N/A"}]
[null,null,null,null,null,null,null,null,null,null,{"$error":"#N/A"}]
[null,null,null,null,null,null,null,null,null,null,{"$error":"#N/A"}]
[null,null,null,null,null,null,null,null,null,null,{"$error":"#N/A"}]
[null,null,null,null,null,null,null,null,null,null,{"$error":"#N/A"}]
[null,null,null,null,null,null,null,null,null,null,{"$error":"#N/A"}]
[null,null,null,null,null,null,null,null,null,null,{"$error":"#N/A"}]
[null,null,null,null,null,null,null,null,null,null,{"$error":"#N/A"}]
[null,null,null,null,null,null,null,null,null,null,{"$error":"#N/A"}]
[null,null,null,null,null,null,null,null,null,null,{"$error":"#N/A"}]
[null,null,null,null,null,null,null,null,null,null,{"$error":"#N/A"}]
[null,null,null,null,null,null,null,null,null,null,{"$error":"#N/A"}]
[null,null,null,null,null,null,null,null,null,null,{"$error":"#N/A"}]
[null,null,null,null,null,null,null,null,null,null,{"$error":"#N/A"}]
[null,null,null,null,null,null,null,null,null,null,{"$error":"#N/A"}]
[null,null,null,null,null,null,null,null,null,null,{"$error":"#N/A"}]
[null,null,null,null,null,null,null,null,null,null,{"$error":"#N/A"}]
[null,null,null,null,null,null,null,null,null,null,{"$error":"#N/A"}]
[null,null,null,null,null,null,null,null,null,null,{"$error":"#N/A"}]
[null,null,null,null,null,null,null,null,null,null,{"$error":"#N/A"}]
[null,null,null,null,null,null,null,null,null,null,{"$error":"#N/A"}]
[null,null,null,null,null,null,null,null,null,null,{"$error":"#N/A"}]
[null,null,null,null,null,null,null,null,null,null,{"$error":"#N/A"}]
[null,null,null,null,null,null,null,null,null,null,{"$error":"#N/A"}]
[null,null,null,null,null,null,null,null,null,null,{"$error":"#N/A"}]
[null,null,null,null,null,null,null,null,null,null,{"$error":"#N/A"}]
[null,null,null,null,null,null,null,null,null,null,{"$error":"#N/A"}]
[null,null,null,null,null,null,null,null,null,null,{"$error":"#N/A"}]
[null,null,null,null,null,null,null,null,null,null,{"$error":"#N/A"}]
[null,null,null,null,null,null,null,null,null,null,{"$error":"#N/A"}]
[null,null,null,null,null,null,null,null,null,null,{"$error":"#N/A"}]
[null,null,null,null,null,null,null,null,null,null,{"$error":"#N/A"}]
[null,null,null,null,null,null,null,null,null,null,{"$error":"#N/A"}]
[null,null,null,null,null,null,null,null,null,null,{"$error":"#N/A"}]
[null,null,null,null,null,null,null,null,null,null,{"$error":"#N/A"}]
[null,null,null,null,null,null,null,null,null,null,{"$error":"#N/A"}]
[null,null,null,null,null,null,null,null,null,null,{"$error":"#N/A"}]
[null,null,null,null,null,null,null,null,null,null,{"$error":"#N/A"}]
[null,null,null,null,null,null,null,null,null,null,{"$error":"#N/A"}]
[null,null,null,null,null,null,null,null,null,null,{"$error":"#N/A"}]
[null,null,null,null,null,null,null,null,null,null,{"$error":"#N/A"}]
[null,null,null,null,null,null,null,null,null,null,{"$error":"#N/A"}]
[null,null,null,null,null,null,null,null,null,null,{"$error":"#N/A"}]
[null,null,null,null,null,null,null,null,null,null,{"$error":"#N/A"}]
[null,null,null,null,null,null,null,null,null,null,{"$error":"#N/A"}]
[null,null,null,null,null,null,null,null,null,null,{"$error":"#N/A"}]
[null,null,null,null,null,null,null,null,null,null,{"$error":"#N/A"}]
[null,null,null,null,null,null,null,null,null,null,{"$error":"#N/A"}]
[null,null,null,null,null,null,null,null,null,null,{"$error":"#N/A"}]
[null,null,null,null,null,null,null,null,null,null,{"$error":"#N/A"}]
[null,null,null,null,null,null,null,null,null,null,{"$error":"#N/A"}]
[null,null,null,null,null,null,null,null,null,null,{"$error":"#N/A"}]
[null,null,null,null,null,null,null,null,null,null,{"$error":"#N/A"}]
[null,null,null,null,null,null,null,null,null,null,{"$error":"#N/A"}]
[null,null,null,null,null,null,null,null,null,null,{"$error":"#N/A"}]
[null,null,null,null,null,null,null,null,null,null,{"$error":"#N/A"}]
[null,null,null,null,null,null,null,null,null,null,{"$error":"#N/A"}]
[null,null,null,null,null,null,null,null,null,null,{"$error":"#N/A"}]
[null,null,null,null,null,null,null,null,null,null,{"$error":"#N/A"}]
[null,null,null,null,null,null,null,null,null,null,{"$error":"#N/A"}]
[null,null,null,null,null,null,null,null,null,null,{"$error":"#N/A"}]
[null,null,null,null,null,null,null,null,null,null,{"$error":"#N/A"}]
[null,null,null,null,null,null,null,null,null,null,{"$error":"#N/A"}]
[null,null,null,null,null,null,null,null,null,null,{"$error":"#N/A"}]
[null,null,null,null,null,null,null,null,null,null,{"$error":"#N/A"}]
[null,null,null,null,null,null,null,null,null,null,{"$error":"#N/A"}]
[null,null,null,null,null,null,null,null,null,null,{"$error":"#N/A"}]
[null,null,null,null,null,null,null,null,null,null,{"$error":"#N/A"}]
[null,null,null,null,null,null,null,null,null,null,{"$error":"#N/A"}]
[null,null,null,null,null,null,null,null,null,null,{"$error":"#N/A"}]
[null,null,null,null,null,null,null,null,null,null,{"$error":"#N/A"}]
[null,null,null,null,null,null,null,null,null,null,{"$error":"#N/A"}]
[null,null,null,null,null,null,null,null,null,null,{"$error":"#N/A"}]
[null,null,null,null,null,null,null,null,null,null,{"$error":"#N/A"}]
[null,null,null,null,null,null,null,null,null,null,{"$error":"#N/A"}]
[null,null,null,null,null,null,null,null,null,null,{"$error":"#N/A"}]
[null,null,null,null,null,null,null,null,null,null,{"$error":"#N/A"}]
[null,null,null,null,null,null,null,null,null,null,{"$error":"#N/A"}]
[null,null,null,null,null,null,null,null,null,null,{"$error":"#N/A"}]
[null,null,null,null,null,null,null,null,null,null,{"$error":"#N/A"}]
[null,null,null,null,null,null,null,null,null,null,{"$error":"#N/A"}]
[null,null,null,null,null,null,null,null,null,null,{"$error":"#N/A"}]
[null,null,null,null,null,null,null,null,null,null,{"$error":"#N/A"}]
[null,null,null,null,null,null,null,null,null,null,{"$error":"#N/A"}]
[null,null,null,null,null,null,null,null,null,null,{"$error":"#N/A"}]
[null,null,null,null,null,null,null,null,null,null,{"$error":"#N/A"}]
[null,null,null,null,null,null,null,null,null,null,{"$error":"#N/A"}]
[null,null,null,null,null,null,null,null,null,null,{"$error":"#N/A"}]
[null,null,null,null,null,null,null,null,null,null,{"$error":"#N/A"}]
[null,null,null,null,null,null,null,null,null,null,{"$error":"#N/A"}]
[null,null,null,null,null,null,null,null,null,null,{"$error":"#N/A"}]
[null,null,null,null,null,null,null,null,null,null,{"$error":"#N/A"}]
[null,null,null,null,null,null,null,null,null,null,{"$error":"#N/A"}]
[null,null,null,null,null,null,null,null,null,null,{"$error":"#N/A"}]
[null,null,null,null,null,null,null,null,null,null,{"$error":"#N/A"}]
[null,null,null,null,null,null,null,null,null,null,{"$error":"#N/A"}]
[null,null,null,null,null,null,null,null,null,null,{"$error":"#N/A"}]
[null,null,null,null,null,null,null,null,null,null,{"$error":"#N/A"}]
[null,null,null,null,null,null,null,null,null,null,{"$error":"#N/A"}]
[null,null,null,null,null,null,null,null,null,null,{"$error":"#N/A"}]
[null,null,null,null,null,null,null,null,null,null,{"$error":"#N/A"}]
[null,null,null,null,null,null,null,null,null,null,{"$error":"#N/A"}]
[null,null,null,null,null,null,null,null,null,null,{"$error":"#N/A"}]
[null,null,null,null,null,null,null,null,null,null,{"$error":"#N/A"}]
[null,null,null,null,null,null,null,null,null,null,{"$error":"#N/A"}]
[null,null,null,null,null,null,null,null,null,null,{"$error":"#N/A"}]
[null,null,null,null,null,null,null,null,null,null,{"$error":"#N/A"}]
[null,null,null,null,null,null,null,null,null,null,{"$error":"#N/A"}]
[null,null,null,null,null,null,null,null,null,null,{"$error":"#N/A"}]
[null,null,null,null,null,null,null,null,null,null,{"$error":"#N/A"}]
[null,null,null,null,null,null,null,null,null,null,{"$error":"#N/A"}]
[null,null,null,null,null,null,null,null,null,null,{"$error":"#N/A"}]
[null,null,null,null,null,null,null,null,null,null,{"$error":"#N/A"}]
[null,null,null,null,null,null,null,null,null,null,{"$error":"#N/A"}]
[null,null,null,null,null,null,null,null,null,null,{"$error":"#N/A"}]
[null,null,null,null,null,null,null,null,null,null,{"$error":"#N/A"}]
[null,null,null,null,null,null,null,null,null,null,{"$error":"#N/A"}]
[null,null,null,null,null,null,null,null,null,null,{"$error":"#N/A"}]
[null,null,null,null,null,null,null,null,null,null,{"$error":"#N/A"}]
[null,null,null,null,null,null,null,null,null,null,{"$error":"#N/A"}]
[null,null,null,null,null,null,null,null,null,null,{"$error":"#N/A"}]
[null,null,null,null,null,null,null,null,null,null,{"$error":"#N/A"}]
[null,null,null,null,null,null,null,null,null,null,{"$error":"#N/A"}]
[null,null,null,null,null,null,null,null,null,null,{"$error":"#N/A"}]
[null,null,null,null,null,null,null,null,null,null,{"$error":"#N/A"}]
[null,null,null,null,null,null,null,null,null,null,{"$error":"#N/A"}]
[null,null,null,null,null,null,null,null,null,null,{"$error":"#N/A"}]
[null,null,null,null,null,null,null,null,null,null,{"$error":"#N/A"}]
[null,null,null,null,null,null,null,null,null,null,{"$error":"#N/A"}]
[null,null,null,null,null,null,null,null,null,null,{"$error":"#N/A"}]
[null,null,null,null,null,null,null,null,null,null,{"$error":"#N/A"}]
[null,null,null,null,null,null,null,null,null,null,{"$error":"#N/A"}]
[null,null,null,null,null,null,null,null,null,null,{"$error":"#N/A"}]
[null,null,null,null,null,null,null,null,null,null,{"$error":"#N/A"}]
[null,null,null,null,null,null,null,null,null,null,{"$error":"#N/A"}]
[null,null,null,null,null,null,null,null,null,null,{"$error":"#N/A"}]
[null,null,null,null,null,null,null,null,null,null,{"$error":"#N/A"}]
[null,null,null,null,null,null,null,null,null,null,{"$error":"#N/A"}]
[null,null,null,null,null,null,null,null,null,null,{"$error":"#N/A"}]
[null,null,null,null,null,null,null,null,null,null,{"$error":"#N/A"}]
[null,null,null,null,null,null,null,null,null,null,{"$error":"#N/A"}]
[null,null,null,null,null,null,null,null,null,null,{"$error":"#N/A"}]
[null,null,null,null,null,null,null,null,null,null,{"$error":"#N/A"}]
[null,null,null,null,null,null,null,null,null,null,{"$error":"#N/A"}]
[null,null,null,null,null,null,null,null,null,null,{"$error":"#N/A"}]
[null,null,null,null,null,null,null,null,null,null,{"$error":"#N/A"}]
[null,null,null,null,null,null,null,null,null,null,{"$error":"#N/A"}]
[null,null,null,null,null,null,null,null,null,null,{"$error":"#N/A"}]
[null,null,null,null,null,null,null,null,null,null,{"$error":"#N/A"}]
[null,null,null,null,null,null,null,null,null,null,{"$error":"#N/A"}]
[null,null,null,null,null,null,null,null,null,null,{"$error":"#N/A"}]
[null,null,null,null,null,null,null,null,null,null,{"$error":"#N/A"}]
[null,null,null,null,null,null,null,null,null,null,{"$error":"#N/A"}]
[null,null,null,null,null,null,null,null,null,null,{"$error":"#N/A"}]
[null,null,null,null,null,null,null,null,null,null,{"$error":"#N/A"}]

{"sheet":"Лист3","index":2,"n_rows":8,"n_cols":6,"rows_kept":8,"cut":false,"hidden":false,"merged":[[0,4,0,5],[2,4,7,4],[2,0,7,0],[0,0,0,1],[0,2,0,3],[2,2,7,2]]}
["2016-12-01",null,"2016-12-02",null,"2016-12-03"]
["Норма","Логины","норма","логины","норма","логины"]
[6,{"$f":"IF(ROW(A1)>A$3,\"\",INDEX(Лист2!$K:$K,SUM($A$3:A$3)-A$3+ROW(A1)))","v":"rrkashkarova"},4,{"$f":"IF(ROW(C1)>C$3,\"\",INDEX(Лист2!$K:$K,SUM($A$3:C$3)-C$3+ROW(C1)))","v":"mvorlova72502"},4,{"$f":"IF(ROW(E1)>E$3,\"\",INDEX(Лист2!$K:$K,SUM($A$3:E$3)-E$3+ROW(E1)))","v":"asbarcevich"}]
[null,{"$f":"IF(ROW(A2)>A$3,\"\",INDEX(Лист2!$K:$K,SUM($A$3:A$3)-A$3+ROW(A2)))","v":"eadanilenko"},null,{"$f":"IF(ROW(C2)>C$3,\"\",INDEX(Лист2!$K:$K,SUM($A$3:C$3)-C$3+ROW(C2)))","v":"iabuxareva"},null,{"$f":"IF(ROW(E2)>E$3,\"\",INDEX(Лист2!$K:$K,SUM($A$3:E$3)-E$3+ROW(E2)))","v":"yuvkrivova"}]
[null,{"$f":"IF(ROW(A3)>A$3,\"\",INDEX(Лист2!$K:$K,SUM($A$3:A$3)-A$3+ROW(A3)))","v":"nndanilova"},null,{"$f":"IF(ROW(C3)>C$3,\"\",INDEX(Лист2!$K:$K,SUM($A$3:C$3)-C$3+ROW(C3)))","v":"nndanilova"},null,{"$f":"IF(ROW(E3)>E$3,\"\",INDEX(Лист2!$K:$K,SUM($A$3:E$3)-E$3+ROW(E3)))","v":"detaganova"}]
[null,{"$f":"IF(ROW(A4)>A$3,\"\",INDEX(Лист2!$K:$K,SUM($A$3:A$3)-A$3+ROW(A4)))","v":"iabuxareva"},null,{"$f":"IF(ROW(C4)>C$3,\"\",INDEX(Лист2!$K:$K,SUM($A$3:C$3)-C$3+ROW(C4)))","v":"nvmalova"},null,{"$f":"IF(ROW(E4)>E$3,\"\",INDEX(Лист2!$K:$K,SUM($A$3:E$3)-E$3+ROW(E4)))","v":"asuvarova10571"}]
[null,{"$f":"IF(ROW(A5)>A$3,\"\",INDEX(Лист2!$K:$K,SUM($A$3:A$3)-A$3+ROW(A5)))","v":"rrkashkarova"},null,{"$f":"IF(ROW(C5)>C$3,\"\",INDEX(Лист2!$K:$K,SUM($A$3:C$3)-C$3+ROW(C5)))","v":""},null,{"$f":"IF(ROW(E5)>E$3,\"\",INDEX(Лист2!$K:$K,SUM($A$3:E$3)-E$3+ROW(E5)))","v":""}]
[null,{"$f":"IF(ROW(A6)>A$3,\"\",INDEX(Лист2!$K:$K,SUM($A$3:A$3)-A$3+ROW(A6)))","v":"vkmamina"},null,{"$f":"IF(ROW(C6)>C$3,\"\",INDEX(Лист2!$K:$K,SUM($A$3:C$3)-C$3+ROW(C6)))","v":""},null,{"$f":"IF(ROW(E6)>E$3,\"\",INDEX(Лист2!$K:$K,SUM($A$3:E$3)-E$3+ROW(E6)))","v":""}]